[Event "Goteborg Open 2024"]
[Site "Goteborgs Schackcentrum, Vegatan 20, Gothenburg, Sweden"]
[Date "2024.08.02"]
[Round "4.6"]
[White "Kring, Stephan"]
[Black "Utriainen, Tapani"]
[Result "1/2-1/2"]
[TimeControl "15 minutes + 5 seconds per move from move one (Round 1 - 4) / 90 minutes + 30 seconds per move from move one (Round 5 - 8)"]
[WhiteFideId "1711687"]
[BlackFideId "16300696"]
[WhiteElo "2057"]
[BlackElo "1914"]

1. d4 {[%clk 00:15:08]} {[%emt 00:00:01]} d5 {[%clk 00:15:09]} {[%emt
00:00:02]} 2. c4 {[%clk 00:15:11]} {[%emt 00:00:02]} c6 {[%clk 00:15:13]}
{[%emt 00:00:01]} 3. Nf3 {[%clk 00:15:15]} {[%emt 00:00:01]} Nf6 {[%clk
00:15:17]} 4. Nc3 {[%clk 00:15:19]} {[%emt 00:00:01]} dxc4 {[%clk 00:15:20]}
{[%emt 00:00:03]} 5. a4 {[%clk 00:15:23]} Bf5 {[%clk 00:15:24]} {[%emt
00:00:02]} 6. Ne5 {[%clk 00:15:16]} {[%emt 00:00:11]} Nbd7 {[%clk 00:15:00]}
{[%emt 00:00:29]} 7. Nxc4 {[%clk 00:15:19]} {[%emt 00:00:03]} Qc7 {[%clk
00:15:02]} {[%emt 00:00:02]} 8. e3 {[%clk 00:15:11]} {[%emt 00:00:13]} e5
{[%clk 00:14:52]} {[%emt 00:00:15]} 9. Bd3 {[%clk 00:13:41]} {[%emt 00:01:34]}
Bxd3 {[%clk 00:13:50]} {[%emt 00:01:08]} 10. Qxd3 {[%clk 00:13:44]} Rd8 {[%clk
00:13:12]} {[%emt 00:00:43]} 11. O-O {[%clk 00:13:22]} {[%emt 00:00:27]} Be7
{[%clk 00:12:55]} {[%emt 00:00:22]} 12. Qf5 {[%clk 00:12:50]} {[%emt 00:00:37]}
g6 {[%clk 00:12:07]} {[%emt 00:00:53]} 13. Qf3 {[%clk 00:12:17]} {[%emt
00:00:39]} O-O {[%clk 00:11:18]} {[%emt 00:00:54]} 14. b3 {[%clk 00:11:49]}
{[%emt 00:00:33]} Rfe8 {[%clk 00:08:00]} {[%emt 00:03:23]} 15. Bb2 {[%clk
00:11:30]} {[%emt 00:00:24]} exd4 {[%clk 00:07:59]} {[%emt 00:00:06]} 16. exd4
{[%clk 00:11:32]} {[%emt 00:00:03]} Nb6 {[%clk 00:07:55]} {[%emt 00:00:09]} 17.
Ne5 {[%clk 00:08:56]} {[%emt 00:02:40]} Nbd5 {[%clk 00:07:10]} {[%emt
00:00:51]} 18. Ne4 {[%clk 00:08:46]} {[%emt 00:00:15]} Rf8 {[%clk 00:04:46]}
{[%emt 00:02:28]} 19. a5 {[%clk 00:07:26]} {[%emt 00:01:26]} Nxe4 {[%clk
00:04:33]} {[%emt 00:00:18]} 20. Qxe4 {[%clk 00:07:29]} {[%emt 00:00:01]} Bf6
{[%clk 00:04:31]} {[%emt 00:00:08]} 21. a6 {[%clk 00:07:20]} {[%emt 00:00:14]}
Rfe8 {[%clk 00:02:53]} {[%emt 00:01:43]} 22. Qf3 {[%clk 00:06:56]} {[%emt
00:00:29]} Bg7 {[%clk 00:02:30]} {[%emt 00:00:28]} 23. Rfc1 {[%clk 00:06:50]}
{[%emt 00:00:11]} f6 {[%clk 00:01:41]} {[%emt 00:00:54]} 24. Nc4 {[%clk
00:06:41]} {[%emt 00:00:13]} b6 {[%clk 00:01:21]} {[%emt 00:00:25]} 25. Ne3
{[%clk 00:04:16]} {[%emt 00:02:30]} Qd7 {[%clk 00:00:52]} {[%emt 00:00:34]} 26.
Nxd5 {[%clk 00:03:48]} {[%emt 00:00:33]} cxd5 {[%clk 00:00:56]} {[%emt
00:00:02]} 27. h4 {[%clk 00:03:34]} {[%emt 00:00:18]} Re4 {[%clk 00:00:38]}
{[%emt 00:00:23]} 28. h5 {[%clk 00:03:30]} {[%emt 00:00:08]} Qd6 {[%clk
00:00:18]} {[%emt 00:00:26]} 29. Ba3 {[%clk 00:03:20]} {[%emt 00:00:15]} Qe6
{[%clk 00:00:13]} {[%emt 00:00:09]} 30. hxg6 {[%clk 00:03:19]} {[%emt
00:00:06]} hxg6 {[%clk 00:00:17]} {[%emt 00:00:01]} 31. Qg3 {[%clk 00:01:51]}
{[%emt 00:01:33]} Kf7 {[%clk 00:00:21]} {[%emt 00:00:01]} 32. Rc7+ {[%clk
00:01:45]} {[%emt 00:00:11]} Rd7 {[%clk 00:00:26]} 33. Rac1 {[%clk 00:01:49]}
Rg4 {[%clk 00:00:22]} {[%emt 00:00:09]} 34. Qf3 {[%clk 00:01:45]} {[%emt
00:00:09]} Re4 {[%clk 00:00:17]} {[%emt 00:00:10]} 35. Rxd7+ {[%clk 00:01:29]}
{[%emt 00:00:20]} Qxd7 {[%clk 00:00:22]} {[%emt 00:00:01]} 36. Qg3 {[%clk
00:01:17]} {[%emt 00:00:18]} Qg4 {[%clk 00:00:20]} {[%emt 00:00:06]} 37. Qc7+
{[%clk 00:01:03]} {[%emt 00:00:19]} Kg8 {[%clk 00:00:23]} {[%emt 00:00:01]} 38.
f3 {[%clk 00:01:07]} {[%emt 00:00:01]} Qg5 {[%clk 00:00:16]} {[%emt 00:00:13]}
39. fxe4 {[%clk 00:00:46]} {[%emt 00:00:26]} Qe3+ {[%clk 00:00:20]} 40. Kh2
{[%clk 00:00:47]} {[%emt 00:00:05]} Qh6+ {[%clk 00:00:22]} {[%emt 00:00:03]} 41.
Kg3 {[%clk 00:00:50]} {[%emt 00:00:01]} Qe3+ {[%clk 00:00:23]} {[%emt
00:00:04]} 42. Kh2 {[%clk 00:00:50]} {[%emt 00:00:06]} Qh6+ {[%clk 00:00:27]}
43. Kg1 {[%clk 00:00:54]} Qe3+ {[%clk 00:00:31]} {[%emt 00:00:01]} 44. Kf1
{[%clk 00:00:56]} {[%emt 00:00:03]} Qd3+ {[%clk 00:00:34]} 45. Ke1 {[%clk
00:00:45]} {[%emt 00:00:16]} Qe3+ {[%clk 00:00:38]} {[%emt 00:00:02]} 46. Kf1
{[%clk 00:00:33]} {[%emt 00:00:16]} Qd3+ {[%clk 00:00:42]} {[%emt 00:00:01]} 47.
Kf2 {[%clk 00:00:36]} {[%emt 00:00:03]} Qd2+ {[%clk 00:00:45]} {[%emt
00:00:01]} 48. Kf3 {[%clk 00:00:23]} {[%emt 00:00:18]} Qd3+ {[%clk 00:00:49]}
{[%emt 00:00:02]} 49. Kg4 {[%clk 00:00:27]} {[%emt 00:00:01]} Qxe4+ {[%clk
00:00:52]} {[%emt 00:00:02]} 50. Kh3 {[%clk 00:00:28]} {[%emt 00:00:04]} Qe3+
{[%clk 00:00:51]} {[%emt 00:00:05]} 51. g3 {[%clk 00:00:30]} {[%emt 00:00:03]}
Qh6+ {[%clk 00:00:55]} 1/2-1/2

[Event "Goteborg Open 2024"]
[Site "Goteborgs Schackcentrum, Vegatan 20, Gothenburg, Sweden"]
[Date "2024.08.02"]
[Round "4.7"]
[White "Lennerstad, Allan"]
[Black "Kallen, Jonas"]
[Result "0-1"]
[TimeControl "15 minutes + 5 seconds per move from move one (Round 1 - 4) / 90 minutes + 30 seconds per move from move one (Round 5 - 8)"]
[WhiteFideId "1723774"]
[BlackFideId "1712896"]
[WhiteElo "1950"]
[BlackElo "2017"]

1. Nf3 {[%clk 00:15:08]} {[%emt 00:00:01]} Nf6 {[%clk 00:15:07]} {[%emt
00:00:05]} 2. d4 {[%clk 00:15:11]} g6 {[%clk 00:15:10]} {[%emt 00:00:01]} 3. c4
{[%clk 00:15:15]} {[%emt 00:00:01]} Bg7 {[%clk 00:15:13]} {[%emt 00:00:03]} 4.
Nc3 {[%clk 00:15:19]} {[%emt 00:00:01]} d5 {[%clk 00:15:17]} {[%emt 00:00:01]}
5. cxd5 {[%clk 00:14:59]} {[%emt 00:00:24]} Nxd5 {[%clk 00:15:21]} {[%emt
00:00:03]} 6. Bd2 {[%clk 00:14:56]} {[%emt 00:00:07]} c5 {[%clk 00:14:47]}
{[%emt 00:00:39]} 7. e4 {[%clk 00:14:29]} {[%emt 00:00:32]} Nxc3 {[%clk
00:14:49]} {[%emt 00:00:02]} 8. Bxc3 {[%clk 00:14:28]} {[%emt 00:00:06]} O-O
{[%clk 00:14:32]} {[%emt 00:00:21]} 9. d5 {[%clk 00:13:44]} {[%emt 00:00:50]}
Bg4 {[%clk 00:13:29]} {[%emt 00:01:08]} 10. Bxg7 {[%clk 00:13:16]} {[%emt
00:00:34]} Kxg7 {[%clk 00:13:32]} {[%emt 00:00:02]} 11. Be2 {[%clk 00:13:10]}
{[%emt 00:00:10]} Bxf3 {[%clk 00:12:53]} {[%emt 00:00:44]} 12. Bxf3 {[%clk
00:13:13]} {[%emt 00:00:02]} Qa5+ {[%clk 00:12:57]} {[%emt 00:00:01]} 13. Qd2
{[%clk 00:12:59]} {[%emt 00:00:19]} Qxd2+ {[%clk 00:13:00]} {[%emt 00:00:01]}
14. Kxd2 {[%clk 00:13:03]} {[%emt 00:00:02]} Nd7 {[%clk 00:13:01]} {[%emt
00:00:04]} 15. Rac1 {[%clk 00:12:38]} {[%emt 00:00:30]} b6 {[%clk 00:12:56]}
{[%emt 00:00:11]} 16. Rhe1 {[%clk 00:12:03]} {[%emt 00:00:40]} e5 {[%clk
00:12:22]} {[%emt 00:00:38]} 17. dxe6 {[%clk 00:10:43]} {[%emt 00:01:26]} fxe6
{[%clk 00:12:23]} {[%emt 00:00:02]} 18. e5 {[%clk 00:10:01]} {[%emt 00:00:48]}
Rad8 {[%clk 00:12:21]} {[%emt 00:00:08]} 19. Kc2 {[%clk 00:10:00]} {[%emt
00:00:05]} Kf7 {[%clk 00:11:20]} {[%emt 00:01:05]} 20. Bc6 {[%clk 00:09:34]}
{[%emt 00:00:32]} Ke7 {[%clk 00:11:16]} {[%emt 00:00:09]} 21. Re2 {[%clk
00:09:27]} {[%emt 00:00:13]} Rf4 {[%clk 00:10:09]} {[%emt 00:01:11]} 22. Rd1
{[%clk 00:08:56]} {[%emt 00:00:37]} Nf8 {[%clk 00:08:03]} {[%emt 00:02:10]} 23.
Rxd8 {[%clk 00:08:58]} {[%emt 00:00:03]} Kxd8 {[%clk 00:08:07]} {[%emt
00:00:01]} 24. g3 {[%clk 00:07:56]} {[%emt 00:01:07]} Rd4 {[%clk 00:07:47]}
{[%emt 00:00:24]} 25. Re3 {[%clk 00:07:13]} {[%emt 00:00:49]} Kc7 {[%clk
00:07:21]} {[%emt 00:00:31]} 26. Bg2 {[%clk 00:06:41]} {[%emt 00:00:37]} Kd7
{[%clk 00:06:40]} {[%emt 00:00:46]} 27. Ra3 {[%clk 00:06:28]} {[%emt 00:00:18]}
a5 {[%clk 00:06:39]} {[%emt 00:00:06]} 28. Rf3 {[%clk 00:06:31]} {[%emt
00:00:02]} Ke7 {[%clk 00:06:35]} {[%emt 00:00:07]} 29. a3 {[%clk 00:06:27]}
{[%emt 00:00:10]} Nd7 {[%clk 00:05:46]} {[%emt 00:00:54]} 30. Re3 {[%clk
00:06:25]} {[%emt 00:00:06]} g5 {[%clk 00:05:17]} {[%emt 00:00:34]} 31. Bc6
{[%clk 00:05:16]} {[%emt 00:01:13]} h6 {[%clk 00:04:22]} {[%emt 00:01:02]} 32.
Bxd7 {[%clk 00:03:11]} {[%emt 00:02:10]} Rxd7 {[%clk 00:04:21]} {[%emt
00:00:06]} 33. Rd3 {[%clk 00:02:29]} {[%emt 00:00:47]} Rxd3 {[%clk 00:03:05]}
{[%emt 00:01:22]} 34. Kxd3 {[%clk 00:02:32]} {[%emt 00:00:01]} Kd7 {[%clk
00:02:52]} {[%emt 00:00:18]} 35. a4 {[%clk 00:02:34]} {[%emt 00:00:04]} Kc6
{[%clk 00:02:46]} {[%emt 00:00:10]} 36. Kc4 {[%clk 00:02:38]} {[%emt 00:00:01]}
g4 {[%clk 00:02:50]} {[%emt 00:00:01]} 37. Kd3 {[%clk 00:01:44]} {[%emt
00:00:59]} Kd5 {[%clk 00:02:51]} {[%emt 00:00:04]} 38. f4 {[%clk 00:01:41]}
{[%emt 00:00:09]} gxf3 {[%clk 00:01:59]} {[%emt 00:00:57]} 39. g4 {[%clk
00:01:44]} {[%emt 00:00:02]} Kxe5 {[%clk 00:01:52]} {[%emt 00:00:11]} 40. Ke3
{[%clk 00:01:48]} f2 {[%clk 00:01:35]} {[%emt 00:00:22]} 41. Kxf2 {[%clk
00:01:52]} {[%emt 00:00:02]} Kf4 {[%clk 00:01:39]} 42. h3 {[%clk 00:01:55]} c4
{[%clk 00:01:25]} {[%emt 00:00:20]} 0-1

[Event "Goteborg Open 2024"]
[Site "Goteborgs Schackcentrum, Vegatan 20, Gothenburg, Sweden"]
[Date "2024.08.02"]
[Round "4.8"]
[White "Wickstrom, Carina"]
[Black "Westlund, Tim"]
[Result "1-0"]
[TimeControl "15 minutes + 5 seconds per move from move one (Round 1 - 4) / 90 minutes + 30 seconds per move from move one (Round 5 - 8)"]
[WhiteFideId "1743201"]
[BlackFideId "1754718"]
[WhiteElo "2013"]
[BlackElo "1886"]

1. Nf3 {[%clk 00:15:07]} {[%emt 00:00:03]} Nf6 {[%clk 00:15:09]} {[%emt
00:00:01]} 2. g3 {[%clk 00:15:11]} {[%emt 00:00:01]} d5 {[%clk 00:15:12]}
{[%emt 00:00:03]} 3. Bg2 {[%clk 00:15:14]} Bf5 {[%clk 00:15:13]} {[%emt
00:00:05]} 4. d4 {[%clk 00:15:13]} {[%emt 00:00:05]} e6 {[%clk 00:15:05]}
{[%emt 00:00:13]} 5. O-O {[%clk 00:15:15]} {[%emt 00:00:03]} h6 {[%clk
00:15:06]} {[%emt 00:00:04]} 6. c4 {[%clk 00:15:15]} {[%emt 00:00:05]} c6
{[%clk 00:15:00]} {[%emt 00:00:11]} 7. Nc3 {[%clk 00:15:16]} {[%emt 00:00:04]}
Be7 {[%clk 00:14:59]} {[%emt 00:00:06]} 8. Ne5 {[%clk 00:14:03]} {[%emt
00:01:19]} Nbd7 {[%clk 00:14:58]} {[%emt 00:00:05]} 9. cxd5 {[%clk 00:13:40]}
{[%emt 00:00:28]} exd5 {[%clk 00:15:00]} {[%emt 00:00:03]} 10. Bf4 {[%clk
00:13:16]} {[%emt 00:00:29]} O-O {[%clk 00:14:46]} {[%emt 00:00:20]} 11. Rc1
{[%clk 00:12:59]} {[%emt 00:00:22]} Bh7 {[%clk 00:13:29]} {[%emt 00:01:21]} 12.
b4 {[%clk 00:12:20]} {[%emt 00:00:45]} a6 {[%clk 00:12:07]} {[%emt 00:01:26]}
13. Qb3 {[%clk 00:12:09]} {[%emt 00:00:16]} Qb6 {[%clk 00:11:27]} {[%emt
00:00:44]} 14. Qd1 {[%clk 00:07:31]} {[%emt 00:04:44]} Bxb4 {[%clk 00:10:40]}
{[%emt 00:00:52]} 15. e4 {[%clk 00:06:47]} {[%emt 00:00:50]} Qa5 {[%clk
00:09:40]} {[%emt 00:01:05]} 16. Nxd7 {[%clk 00:03:45]} {[%emt 00:03:07]} Nxd7
{[%clk 00:09:23]} {[%emt 00:00:22]} 17. Bd2 {[%clk 00:03:00]} {[%emt 00:00:50]}
dxe4 {[%clk 00:09:11]} {[%emt 00:00:16]} 18. Nxe4 {[%clk 00:02:39]} {[%emt
00:00:27]} Bxd2 {[%clk 00:09:01]} {[%emt 00:00:15]} 19. Nxd2 {[%clk 00:02:42]}
{[%emt 00:00:02]} Rad8 {[%clk 00:05:31]} {[%emt 00:03:34]} 20. Nc4 {[%clk
00:01:39]} {[%emt 00:01:08]} Qc7 {[%clk 00:04:57]} {[%emt 00:00:38]} 21. Qb3
{[%clk 00:01:09]} {[%emt 00:00:37]} b5 {[%clk 00:03:49]} {[%emt 00:01:13]} 22.
Ne3 {[%clk 00:01:06]} {[%emt 00:00:08]} Qd6 {[%clk 00:03:41]} {[%emt 00:00:12]}
23. Bxc6 {[%clk 00:00:52]} {[%emt 00:00:20]} Qxd4 {[%clk 00:03:09]} {[%emt
00:00:36]} 24. Rfd1 {[%clk 00:00:43]} {[%emt 00:00:15]} Qa7 {[%clk 00:03:12]}
{[%emt 00:00:02]} 25. Nd5 {[%clk 00:00:18]} {[%emt 00:00:31]} Ne5 {[%clk
00:02:25]} {[%emt 00:00:50]} 26. Nf4 {[%clk 00:00:20]} {[%emt 00:00:04]} Nxc6
{[%clk 00:02:21]} {[%emt 00:00:10]} 27. Rxc6 {[%clk 00:00:24]} Rxd1+ {[%clk
00:02:13]} {[%emt 00:00:12]} 28. Qxd1 {[%clk 00:00:28]} {[%emt 00:00:01]} Be4
{[%clk 00:01:25]} {[%emt 00:00:50]} 29. Rd6 {[%clk 00:00:30]} {[%emt 00:00:07]}
Ba8 {[%clk 00:00:46]} {[%emt 00:00:44]} 30. Rd7 {[%clk 00:00:29]} {[%emt
00:00:04]} Qb6 {[%clk 00:00:46]} {[%emt 00:00:03]} 31. Nd5 {[%clk 00:00:07]}
{[%emt 00:02:42]} Qe6 {[%clk 00:01:06]} {[%emt 00:00:41]} 32. Ne7+ {[%clk
00:00:10]} {[%emt 00:00:05]} Kh8 {[%clk 00:01:02]} {[%emt 00:00:08]} 33. Rd8
{[%clk 00:00:09]} {[%emt 00:00:07]} Rxd8 {[%clk 00:00:59]} {[%emt 00:00:08]} 34.
Qxd8+ {[%clk 00:00:13]} 1-0

[Event "Goteborg Open 2024"]
[Site "Goteborgs Schackcentrum, Vegatan 20, Gothenburg, Sweden"]
[Date "2024.08.02"]
[Round "4.9"]
[White "Hammar, Arvid"]
[Black "Wesslen, Ulf"]
[Result "0-1"]
[TimeControl "15 minutes + 5 seconds per move from move one (Round 1 - 4) / 90 minutes + 30 seconds per move from move one (Round 5 - 8)"]
[WhiteFideId "1735977"]
[BlackFideId "1705199"]
[WhiteElo "1653"]
[BlackElo "1953"]

1. e4 {[%clk 00:15:08]} {[%emt 00:00:01]} e6 {[%clk 00:15:08]} {[%emt
00:00:04]} 2. d4 {[%clk 00:15:07]} {[%emt 00:00:05]} d5 {[%clk 00:15:08]}
{[%emt 00:00:05]} 3. c4 {[%clk 00:15:04]} {[%emt 00:00:08]} c6 {[%clk
00:14:03]} {[%emt 00:01:11]} 4. Nc3 {[%clk 00:15:03]} {[%emt 00:00:06]} dxe4
{[%clk 00:13:18]} {[%emt 00:00:50]} 5. Nxe4 {[%clk 00:14:56]} {[%emt 00:00:11]}
Nf6 {[%clk 00:12:14]} {[%emt 00:01:09]} 6. Bg5 {[%clk 00:14:33]} {[%emt
00:00:28]} Bb4+ {[%clk 00:11:09]} {[%emt 00:01:11]} 7. Nc3 {[%clk 00:14:22]}
{[%emt 00:00:16]} Nbd7 {[%clk 00:10:36]} {[%emt 00:00:37]} 8. Nf3 {[%clk
00:14:14]} {[%emt 00:00:12]} Qa5 {[%clk 00:09:59]} {[%emt 00:00:43]} 9. Qc2
{[%clk 00:13:31]} {[%emt 00:00:49]} O-O {[%clk 00:09:40]} {[%emt 00:00:23]} 10.
a3 {[%clk 00:13:17]} {[%emt 00:00:19]} Ne4 {[%clk 00:08:37]} {[%emt 00:01:08]}
11. Bd3 {[%clk 00:12:28]} {[%emt 00:00:53]} Bxc3+ {[%clk 00:08:14]} {[%emt
00:00:29]} 12. bxc3 {[%clk 00:12:25]} {[%emt 00:00:09]} Nxg5 {[%clk 00:08:03]}
{[%emt 00:00:15]} 13. Nxg5 {[%clk 00:12:24]} {[%emt 00:00:06]} Qxg5 {[%clk
00:08:03]} {[%emt 00:00:05]} 14. Bxh7+ {[%clk 00:12:13]} {[%emt 00:00:15]} Kh8
{[%clk 00:08:05]} {[%emt 00:00:03]} 15. h4 {[%clk 00:11:53]} {[%emt 00:00:24]}
Qf4 {[%clk 00:06:35]} {[%emt 00:01:36]} 16. g3 {[%clk 00:10:48]} {[%emt
00:01:11]} Qg4 {[%clk 00:06:02]} {[%emt 00:00:38]} 17. h5 {[%clk 00:09:45]}
{[%emt 00:01:07]} f5 {[%clk 00:04:41]} {[%emt 00:01:26]} 18. Rh4 {[%clk
00:08:23]} {[%emt 00:01:27]} Qg5 {[%clk 00:03:56]} {[%emt 00:00:51]} 19. Bg6
{[%clk 00:07:41]} {[%emt 00:00:45]} Kg8 {[%clk 00:03:46]} {[%emt 00:00:17]} 20.
c5 {[%clk 00:06:49]} {[%emt 00:00:58]} Rf6 {[%clk 00:03:43]} {[%emt 00:00:07]}
21. Qb3 {[%clk 00:06:25]} {[%emt 00:00:29]} Nf8 {[%clk 00:03:44]} {[%emt
00:00:05]} 22. c4 {[%clk 00:05:13]} {[%emt 00:01:17]} Nxg6 {[%clk 00:03:24]}
{[%emt 00:00:24]} 23. hxg6 {[%clk 00:04:44]} {[%emt 00:00:34]} Rxg6 {[%clk
00:03:28]} {[%emt 00:00:02]} 24. d5 {[%clk 00:04:23]} {[%emt 00:00:26]} f4
{[%clk 00:03:18]} {[%emt 00:00:15]} 25. Rxf4 {[%clk 00:04:10]} {[%emt
00:00:18]} Qe5+ {[%clk 00:03:21]} {[%emt 00:00:01]} 26. Kf1 {[%clk 00:03:55]}
{[%emt 00:00:19]} Qxa1+ {[%clk 00:03:24]} {[%emt 00:00:03]} 27. Kg2 {[%clk
00:03:59]} {[%emt 00:00:01]} Qe5 {[%clk 00:02:53]} {[%emt 00:00:36]} 28. d6
{[%clk 00:03:23]} {[%emt 00:00:42]} Qxc5 {[%clk 00:02:56]} {[%emt 00:00:01]} 29.
d7 {[%clk 00:03:19]} {[%emt 00:00:09]} Bxd7 {[%clk 00:02:55]} {[%emt 00:00:07]}
30. Qxb7 {[%clk 00:03:19]} {[%emt 00:00:03]} Rd8 {[%clk 00:02:58]} {[%emt
00:00:03]} 31. Qc7 {[%clk 00:03:18]} {[%emt 00:00:06]} Qb6 {[%clk 00:02:54]}
{[%emt 00:00:10]} 32. Qe5 {[%clk 00:03:09]} {[%emt 00:00:14]} Rf8 {[%clk
00:02:38]} {[%emt 00:00:20]} 33. Rxf8+ {[%clk 00:02:54]} {[%emt 00:00:20]} Kxf8
{[%clk 00:02:41]} {[%emt 00:00:01]} 34. Qd6+ {[%clk 00:02:48]} {[%emt
00:00:12]} Ke8 {[%clk 00:02:45]} 35. c5 {[%clk 00:02:50]} {[%emt 00:00:03]} Qb3
{[%clk 00:02:28]} {[%emt 00:00:21]} 36. Qd4 {[%clk 00:02:37]} {[%emt 00:00:20]}
Rf6 {[%clk 00:02:29]} {[%emt 00:00:03]} 37. Qg4 {[%clk 00:02:22]} {[%emt
00:00:20]} Qd5+ {[%clk 00:02:28]} {[%emt 00:00:07]} 38. Kg1 {[%clk 00:02:16]}
{[%emt 00:00:09]} Kf7 {[%clk 00:02:32]} {[%emt 00:00:02]} 39. Qe2 {[%clk
00:02:07]} {[%emt 00:00:13]} Qxc5 {[%clk 00:02:28]} {[%emt 00:00:11]} 40. Kg2
{[%clk 00:02:08]} {[%emt 00:00:03]} e5 {[%clk 00:02:26]} {[%emt 00:00:06]} 41.
a4 {[%clk 00:02:11]} {[%emt 00:00:04]} Be6 {[%clk 00:02:29]} {[%emt 00:00:01]}
42. f3 {[%clk 00:02:13]} {[%emt 00:00:03]} Bd5 {[%clk 00:02:33]} {[%emt
00:00:02]} 43. Qa6 {[%clk 00:02:12]} {[%emt 00:00:06]} Bxf3+ {[%clk 00:02:33]}
{[%emt 00:00:05]} 44. Kh2 {[%clk 00:02:13]} {[%emt 00:00:04]} Qf2+ {[%clk
00:02:31]} {[%emt 00:00:07]} 45. Kh3 {[%clk 00:02:14]} {[%emt 00:00:04]} Rh6#
{[%clk 00:02:35]} {[%emt 00:00:01]} 0-1

[Event "Goteborg Open 2024"]
[Site "Goteborgs Schackcentrum, Vegatan 20, Gothenburg, Sweden"]
[Date "2024.08.02"]
[Round "4.10"]
[White "Karlsson, Stefan"]
[Black "Bergdahl, Martin"]
[Result "0-1"]
[TimeControl "15 minutes + 5 seconds per move from move one (Round 1 - 4) / 90 minutes + 30 seconds per move from move one (Round 5 - 8)"]
[WhiteFideId "1771183"]
[BlackFideId "1782231"]
[WhiteElo "2042"]
[BlackElo "1711"]

1. e4 {[%clk 00:15:07]} {[%emt 00:00:03]} e5 {[%clk 00:15:08]} {[%emt
00:00:03]} 2. Nf3 {[%clk 00:15:11]} {[%emt 00:00:01]} Nc6 {[%clk 00:15:11]}
{[%emt 00:00:02]} 3. Bb5 {[%clk 00:15:15]} Bc5 {[%clk 00:15:15]} {[%emt
00:00:02]} 4. c3 {[%clk 00:15:18]} {[%emt 00:00:01]} a6 {[%clk 00:15:16]}
{[%emt 00:00:04]} 5. Bxc6 {[%clk 00:15:09]} {[%emt 00:00:14]} dxc6 {[%clk
00:15:19]} {[%emt 00:00:01]} 6. Nxe5 {[%clk 00:15:09]} {[%emt 00:00:06]} Nf6
{[%clk 00:15:20]} {[%emt 00:00:05]} 7. d4 {[%clk 00:15:02]} {[%emt 00:00:11]}
Bd6 {[%clk 00:15:12]} {[%emt 00:00:13]} 8. Nxf7 {[%clk 00:12:55]} {[%emt
00:02:11]} Kxf7 {[%clk 00:15:04]} {[%emt 00:00:13]} 9. e5 {[%clk 00:12:59]}
{[%emt 00:00:02]} Bxe5 {[%clk 00:15:06]} {[%emt 00:00:03]} 10. dxe5 {[%clk
00:12:56]} {[%emt 00:00:07]} Qxd1+ {[%clk 00:15:08]} {[%emt 00:00:04]} 11. Kxd1
{[%clk 00:13:00]} {[%emt 00:00:02]} Ng4 {[%clk 00:15:04]} {[%emt 00:00:08]} 12.
Kc2 {[%clk 00:09:19]} {[%emt 00:03:46]} Bf5+ {[%clk 00:14:36]} {[%emt
00:00:33]} 13. Kb3 {[%clk 00:09:13]} {[%emt 00:00:10]} Be6+ {[%clk 00:14:28]}
{[%emt 00:00:14]} 14. Ka3 {[%clk 00:08:37]} {[%emt 00:00:41]} Nxe5 {[%clk
00:14:24]} {[%emt 00:00:10]} 15. b3 {[%clk 00:08:39]} {[%emt 00:00:02]} b5
{[%clk 00:13:52]} {[%emt 00:00:37]} 16. Be3 {[%clk 00:05:53]} {[%emt 00:02:51]}
Nd3 {[%clk 00:13:26]} {[%emt 00:00:31]} 17. Rd1 {[%clk 00:05:32]} {[%emt
00:00:26]} Rhd8 {[%clk 00:13:19]} {[%emt 00:00:11]} 18. Bd4 {[%clk 00:05:24]}
{[%emt 00:00:13]} b4+ {[%clk 00:13:14]} {[%emt 00:00:11]} 19. cxb4 {[%clk
00:04:40]} {[%emt 00:00:49]} Rxd4 {[%clk 00:13:08]} {[%emt 00:00:12]} 20. Nc3
{[%clk 00:04:27]} {[%emt 00:00:17]} Nxb4 {[%clk 00:12:27]} {[%emt 00:00:47]} 21.
Rxd4 {[%clk 00:04:16]} {[%emt 00:00:15]} Nc2+ {[%clk 00:12:30]} {[%emt
00:00:02]} 22. Kb2 {[%clk 00:04:20]} {[%emt 00:00:01]} Nxd4 {[%clk 00:12:34]}
{[%emt 00:00:01]} 23. Ne4 {[%clk 00:04:16]} {[%emt 00:00:10]} Rb8 {[%clk
00:12:02]} {[%emt 00:00:35]} 24. Rd1 {[%clk 00:04:11]} {[%emt 00:00:11]} Rd8
{[%clk 00:10:51]} {[%emt 00:01:16]} 25. Ng5+ {[%clk 00:03:14]} {[%emt
00:01:01]} Kg6 {[%clk 00:10:44]} {[%emt 00:00:13]} 26. Nf3 {[%clk 00:02:31]}
{[%emt 00:00:48]} c5 {[%clk 00:10:25]} {[%emt 00:00:24]} 27. Ne5+ {[%clk
00:02:31]} {[%emt 00:00:05]} Kf6 {[%clk 00:10:25]} {[%emt 00:00:05]} 28. Nd3
{[%clk 00:01:51]} {[%emt 00:00:45]} Nc6 {[%clk 00:10:01]} {[%emt 00:00:30]} 29.
Kc3 {[%clk 00:01:53]} {[%emt 00:00:02]} Nb4 {[%clk 00:09:47]} {[%emt 00:00:19]}
30. Nxc5 {[%clk 00:01:32]} {[%emt 00:00:26]} Nxa2+ {[%clk 00:09:09]} {[%emt
00:00:42]} 31. Kb2 {[%clk 00:01:23]} {[%emt 00:00:15]} Rxd1 {[%clk 00:09:03]}
{[%emt 00:00:12]} 32. Kxa2 {[%clk 00:01:26]} Rd5 {[%clk 00:08:47]} {[%emt
00:00:21]} 33. Ne4+ {[%clk 00:01:24]} {[%emt 00:00:07]} Ke5 {[%clk 00:08:46]}
{[%emt 00:00:06]} 34. f3 {[%clk 00:00:53]} {[%emt 00:00:36]} Ra5+ {[%clk
00:08:34]} {[%emt 00:00:17]} 35. Kb2 {[%clk 00:00:55]} {[%emt 00:00:03]} Rb5
{[%clk 00:08:34]} {[%emt 00:00:05]} 36. Nd2 {[%clk 00:00:58]} {[%emt 00:00:03]}
a5 {[%clk 00:08:36]} {[%emt 00:00:02]} 37. Kc3 {[%clk 00:01:02]} {[%emt
00:00:02]} Rc5+ {[%clk 00:08:31]} {[%emt 00:00:09]} 38. Kb2 {[%clk 00:01:03]}
{[%emt 00:00:04]} Bf5 {[%clk 00:08:17]} {[%emt 00:00:19]} 39. Ka3 {[%clk
00:01:03]} {[%emt 00:00:04]} Rc2 {[%clk 00:08:13]} {[%emt 00:00:10]} 40. Nc4+
{[%clk 00:00:57]} {[%emt 00:00:12]} Rxc4 {[%clk 00:08:08]} {[%emt 00:00:09]} 41.
bxc4 {[%clk 00:00:59]} {[%emt 00:00:02]} Kd4 {[%clk 00:08:12]} {[%emt
00:00:02]} 42. Ka4 {[%clk 00:01:02]} {[%emt 00:00:03]} Kxc4 {[%clk 00:08:11]}
{[%emt 00:00:05]} 43. Kxa5 {[%clk 00:01:05]} {[%emt 00:00:02]} c5 {[%clk
00:08:15]} 0-1